bitfinex-derivatives/quotes_BNBF0:USTF0_20250425
["timestamp","ask_amount","ask_price","bid_price","bid_amount"]
[1745576490897,1.36884079,608.94,606.69,0.3023447]
[1745576491197,1.36884079,608.93,606.69,0.3023447]
[1745576491395,1.36884079,608.92,606.69,0.3023447]
[1745576491599,1.36971824,608.91,606.69,0.3023447]
[1745576491800,1.36971824,608.9,606.69,0.3023447]
[1745576491997,1.36971824,608.89,606.69,0.3023447]
[1745576492201,2.53929874,608.88,606.69,0.3023447]
[1745576492494,1.36971824,608.87,606.69,0.3023447]
[1745576492697,1.36971824,608.86,606.68,1.18532313]
[1745576492901,1.36971824,608.85,606.69,0.3022807]
[1745576493100,1.36971824,608.84,606.69,0.3022807]
[1745576493297,2.53929874,608.83,606.69,0.3022807]
[1745576493503,1.36971824,608.82,606.7,0.958]
[1745576493702,1.36971824,608.81,606.71,0.3022807]
[1745576493900,2.53929874,608.8,606.71,0.3022807]
[1745576494104,1.36971824,608.79,606.71,0.3022807]
[1745576494305,2.53929874,608.78,606.7,0.958]
[1745576494502,1.36971824,608.77,606.71,0.3022858]
[1745576494702,2.53929874,608.76,606.71,0.3022858]
[1745576494901,1.36971824,608.75,606.71,0.3022858]
[1745576495108,1.36971824,608.74,606.71,0.3022858]
[1745576495408,2.53929874,608.73,606.71,0.3022858]
[1745576495600,1.36971824,608.72,606.71,0.3022858]
[1745576495805,2.53929874,608.71,606.7,0.958]
[1745576496003,1.36971824,608.7,606.71,0.30226605]
[1745576496209,1.36971824,608.69,606.71,0.30226605]
[1745576496409,2.53929874,608.68,606.71,0.30226605]
[1745576496605,1.36971824,608.67,606.71,0.30226605]
[1745576496807,1.36971824,608.66,606.71,0.30226605]
[1745576497008,1.36971824,608.65,606.71,0.30226605]
[1745576497209,1.36971824,608.64,606.71,0.30226605]
[1745576497409,0.28633491,609.02,606.71,0.30226605]
[1745576497410,2.53929874,608.63,606.71,0.30226605]
[1745576497610,1.36971824,608.62,606.72,1.175]
[1745576497810,1.36971824,608.61,606.73,0.30226605]
[1745576498006,2.53929874,608.6,606.73,0.30226605]
[1745576498212,2.53929874,608.6,606.79,1.04841974]
[1745576498213,1.36971824,608.59,606.79,1.04841974]
[1745576498407,1.36971824,608.58,606.79,1.04841974]
[1745576498610,1.36971824,608.57,606.79,1.04841974]
[1745576498912,1.36971824,608.56,606.8,0.3024182]
[1745576499211,1.36971824,608.55,606.8,0.3024182]
[1745576499409,2.53929874,608.54,606.8,0.3024182]
[1745576499610,1.36971824,608.53,606.8,0.3024182]
[1745576499811,1.36971824,608.52,606.8,0.3024182]
[1745576500010,2.53929874,608.51,606.8,0.3024182]
[1745576500209,1.36971824,608.5,606.8,0.3024182]
[1745576500409,1.36971824,608.49,606.8,0.3024182]
[1745576500614,1.36971824,608.48,606.81,0.3024279]
[1745576500813,1.36971824,608.47,606.8,0.3024279]
[1745576501015,2.53929874,608.46,606.81,0.3024279]
[1745576501210,2.53929874,608.46,606.72,1.175]
[1745576501211,1.36971824,608.45,606.8,0.3024279]
[1745576501415,2.53929874,608.44,606.81,0.3024279]
[1745576501612,1.36971824,608.43,606.76,0.3024279]
[1745576501916,1.36971824,608.42,606.77,0.3024279]
[1745576502116,2.53929874,608.41,606.78,0.30240937]
[1745576502317,1.36971824,608.4,606.76,0.30240937]
[1745576502517,1.36971824,608.39,606.75,0.28641622]
[1745576502719,2.53929874,608.38,606.75,0.28641622]
[1745576503018,1.36971824,608.37,606.75,0.28641622]
[1745576503219,1.36971824,608.36,606.75,0.28641622]
[1745576503417,1.36971824,608.35,606.75,0.28641622]
[1745576503618,1.36971824,608.34,606.75,0.28641622]
[1745576503819,1.36971824,608.33,606.75,0.28641622]
[1745576504019,1.36971824,608.32,606.72,1.175]
[1745576504219,2.53929874,608.31,606.76,0.842]
[1745576504417,1.36971824,608.3,606.76,0.842]
[1745576504620,1.36971824,608.29,606.76,0.842]
[1745576504819,1.36973219,608.28,606.76,0.842]
[1745576505119,1.36973219,608.27,606.76,0.842]
[1745576505315,1.36973219,608.26,606.76,0.842]
[1745576505519,1.36973219,608.25,606.76,0.842]
[1745576505719,1.36973219,608.24,606.76,0.842]
[1745576505921,1.36973219,608.23,606.76,0.842]
[1745576506121,1.36973219,608.22,606.76,0.842]
[1745576506317,1.36973219,608.21,606.76,0.842]
[1745576506522,1.36973219,608.2,606.76,0.842]
[1745576506716,1.36973219,608.19,606.76,0.842]
[1745576506921,2.53931269,608.18,606.76,0.842]
[1745576507117,1.36973219,608.17,606.76,0.842]
[1745576507317,2.53931269,608.16,606.76,0.842]
[1745576507617,2.53931269,608.15,606.76,0.842]
[1745576507817,1.36973219,608.14,606.76,0.842]
[1745576508021,2.53931269,608.13,606.76,0.842]
[1745576508224,1.36973219,608.12,606.76,0.842]
[1745576508522,2.53931269,608.11,606.76,0.842]
[1745576508722,1.36973219,608.1,606.76,0.842]
[1745576508923,1.36973219,608.09,606.77,0.30243269]
[1745576509121,2.53931269,608.08,606.77,0.30243269]
[1745576509320,1.36973219,608.07,606.77,0.30243269]
[1745576509523,2.53842121,608.06,606.77,0.30243269]
[1745576509722,1.36884071,608.05,606.77,0.30243269]
[1745576509922,1.36884071,608.04,606.77,0.30243269]
[1745576510123,2.53842121,608.03,606.77,0.30243269]
[1745576510324,1.36884071,608.02,606.77,0.30243269]
[1745576510523,1.36884071,608.01,606.77,0.30243269]
[1745576510724,2.53842121,608.0,606.77,0.30243269]
[1745576510920,1.36884071,607.99,606.77,0.30243269]
[1745576511124,2.53842121,607.98,606.77,0.30243269]
[1745576511320,1.36884071,607.97,606.77,0.30243269]
[1745576511626,2.53842121,607.96,606.76,1.12846809]
[1745576511826,1.36884071,607.95,606.76,1.12846809]
[1745576512126,2.53842121,607.94,606.76,1.12846809]
[1745576512323,1.36884071,607.93,606.76,1.12846809]
[1745576512527,1.36884071,607.92,606.76,1.12846809]
[1745576512727,1.36884071,607.91,606.76,1.12846809]
[1745576512928,2.53842121,607.9,606.76,1.12846809]
[1745576513128,1.36884071,607.89,606.77,0.868]
[1745576513325,2.53842121,607.88,606.77,0.868]
[1745576513530,1.36884071,607.87,606.77,0.868]
[1745576513828,1.36884071,607.86,606.77,0.868]
[1745576514030,2.53842121,607.85,606.77,0.868]
[1745576514323,1.36884071,607.84,606.77,0.868]
[1745576514530,1.36884071,607.83,606.77,0.868]
[1745576514829,1.36884071,607.82,606.77,0.868]
[1745576515029,1.36884071,607.81,606.77,1.899]
[1745576515328,1.36884071,607.8,606.77,1.899]
[1745576515528,1.1695805,607.82,606.77,1.899]
[1745576515529,2.53842121,607.79,606.77,1.899]
[1745576515830,1.36884071,607.78,606.77,1.899]
[1745576516030,1.36884071,607.77,606.77,1.899]
[1745576516229,1.36884071,607.76,606.77,1.899]
[1745576516430,2.53842121,607.75,606.77,1.899]
[1745576516629,1.36884071,607.74,606.77,1.899]
[1745576516829,1.36884071,607.73,606.77,1.899]
[1745576517125,1.36884071,607.72,606.77,1.899]
[1745576517428,1.36884071,607.71,606.77,1.899]
[1745576517630,1.36884071,607.7,606.77,1.899]
[1745576517828,1.36884071,607.69,606.77,1.899]
[1745576518128,1.36884071,607.68,606.77,1.899]
[1745576518428,1.36884071,607.67,606.77,1.899]
[1745576518729,1.36884071,607.66,606.77,1.899]
[1745576518928,1.36884071,607.65,606.77,1.899]
[1745576519224,1.36884071,607.64,606.77,1.899]
[1745576519425,1.36884071,607.63,606.77,1.899]
[1745576519628,1.36884071,607.62,606.77,1.899]
[1745576519825,1.36884071,607.61,606.77,1.899]
[1745576520029,1.36884071,607.6,606.77,1.899]
[1745576520330,2.53842121,607.59,606.77,1.899]
[1745576520528,1.36884071,607.58,606.77,1.899]
[1745576520723,1.36884071,607.57,606.77,1.899]
[1745576520929,2.53842121,607.56,606.77,1.899]
[1745576521229,1.36940346,607.55,606.77,1.899]
[1745576521424,2.53898396,607.54,606.77,1.899]
[1745576521627,1.36941027,607.53,606.77,1.899]
[1745576521828,2.53899077,607.52,606.77,1.899]
[1745576522027,1.36941027,607.51,606.77,1.899]
[1745576522225,2.53899077,607.5,606.77,1.899]
[1745576522529,2.53899077,607.49,606.77,1.899]
[1745576522829,1.36941027,607.48,606.77,1.899]
[1745576523029,2.53899077,607.47,606.77,1.899]
[1745576523229,1.36941027,607.46,606.77,1.899]
[1745576523429,2.53899077,607.45,606.77,1.899]
[1745576523725,1.36941027,607.44,606.77,1.899]
[1745576523925,2.53899077,607.43,606.77,1.899]
[1745576524130,1.36941027,607.42,606.77,1.899]
[1745576524429,2.53899077,607.41,606.77,1.899]
[1745576524630,2.53899077,607.4,606.77,1.899]
[1745576524831,1.36941027,607.39,606.77,1.899]
[1745576525126,1.36941027,607.38,606.77,1.899]
[1745576525325,1.36941027,607.37,606.77,1.899]
[1745576525524,1.36941027,607.36,606.77,1.899]
[1745576525725,2.53899077,607.35,606.77,1.899]
[1745576525925,1.36941027,607.34,606.77,1.899]
[1745576526129,2.53899077,607.33,606.77,1.031]
[1745576526432,1.36941027,607.32,606.77,1.031]
[1745576526625,1.36941027,607.31,606.77,1.031]
[1745576526928,1.36941027,607.3,606.77,1.031]
[1745576527125,1.36941027,607.29,606.76,1.12861201]
[1745576527326,1.36941027,607.28,606.76,1.12861201]
[1745576527528,1.36941027,607.27,606.76,1.12861201]
[1745576527730,1.36941027,607.26,606.76,1.12861201]
[1745576527930,1.36941027,607.25,606.76,1.12861201]
[1745576528132,1.36941027,607.24,606.76,0.842]
[1745576528327,1.36941027,607.23,606.76,1.12864152]
[1745576528528,1.36941027,607.22,606.76,1.12864152]
[1745576528731,1.36538679,607.21,606.76,1.12864152]
[1745576528929,1.36538679,607.2,606.76,1.12864152]
[1745576529129,1.36538679,607.19,606.76,1.12864152]
[1745576529330,1.36538679,607.18,606.76,1.12864152]
[1745576529534,1.36538679,607.17,606.76,1.12864152]
[1745576529731,1.36538679,607.16,606.76,1.12864152]
[1745576529932,1.36538679,607.15,606.76,1.12864152]
[1745576530137,2.53496729,607.14,606.76,1.12864152]
[1745576530337,1.36538679,607.13,606.76,1.12864152]
[1745576530530,2.53398095,607.12,606.76,1.12864152]
[1745576530730,1.36440045,607.11,606.76,1.12864152]
[1745576530931,2.53398095,607.1,606.76,1.12864152]
[1745576531134,2.53398095,607.09,606.76,1.12864152]
[1745576531333,1.36440045,607.08,606.76,1.12864152]
[1745576531538,2.53398095,607.07,606.76,1.12864152]
[1745576531734,1.36440045,607.06,606.76,1.12864152]
[1745576531933,1.36440045,607.05,606.76,1.12864152]
[1745576532238,2.53398095,607.04,606.76,1.12864152]
[1745576532438,1.36440045,607.03,606.76,1.12864152]
[1745576532739,1.36440045,607.02,606.76,1.12864152]
[1745576533039,1.36440045,607.01,606.76,1.12864152]
[1745576533234,2.53398095,607.0,606.76,1.12864152]
[1745576533442,1.36440045,606.99,606.76,1.12864152]
[1745576533738,2.53398095,606.98,606.76,1.12864152]
[1745576533935,1.36440045,606.97,606.76,1.12864152]
[1745576534142,1.36440045,606.96,606.76,0.842]
[1745576534339,2.53398095,606.95,606.76,1.12868048]
[1745576534539,1.36440045,606.94,606.76,1.12868048]
[1745576534740,1.1695805,606.94,606.76,1.12868048]
[1745576535842,1.1695805,606.93,606.76,1.12868048]
[1745576536242,1.1695805,606.92,606.76,1.12868048]
[1745576536742,1.1695805,606.91,606.76,1.12868048]
[1745576537241,1.1695805,606.9,606.76,0.842]
[1745576537442,1.1695805,606.9,606.76,1.12866749]
[1745576538048,1.24344385,609.25,606.76,1.12866749]
[1745576538241,1.36194715,609.24,606.76,1.12866749]
[1745576538443,1.36194715,609.23,606.76,1.12866749]
[1745576538639,2.52826118,609.22,606.76,1.12866749]
[1745576538844,1.36194715,609.21,606.76,1.12866749]
[1745576539146,2.52826118,609.2,606.76,1.12866749]
[1745576539343,1.36194715,609.19,606.76,1.12866749]
[1745576539542,2.52826118,609.18,606.76,1.12866749]
[1745576539737,1.36194715,609.17,606.76,1.12866749]
[1745576539937,1.36194715,609.16,606.76,1.12866749]
[1745576540141,1.36194715,609.15,606.76,0.842]
[1745576540338,1.36194715,609.14,606.76,1.12839736]
[1745576540537,1.36194715,609.13,606.76,1.12839736]
[1745576540743,1.36194715,609.12,606.76,1.12839736]
[1745576540938,1.36194715,609.11,606.76,1.12839736]
[1745576541142,1.36194715,609.1,606.76,1.12839736]
[1745576541339,1.36194715,609.09,606.76,0.28639736]
[1745576541542,2.52826118,609.08,606.76,0.28639736]
[1745576541741,1.36194715,609.07,606.76,0.28639736]
[1745576542043,2.52826118,609.06,606.76,0.28639736]
[1745576542243,1.36194715,609.05,606.76,0.28639736]
[1745576542444,1.36194715,609.04,606.76,0.28639736]
[1745576542638,1.36194715,609.03,606.76,0.28639736]
[1745576542843,1.36194715,609.02,606.76,0.28639736]
[1745576543039,2.52826118,609.01,606.72,1.175]
[1745576543240,1.36194715,609.0,606.72,1.175]
[1745576543439,1.36194715,608.99,606.76,0.28641622]
[1745576543643,2.52826118,608.98,606.76,0.28641622]
[1745576543944,1.36194715,608.97,606.76,0.28641622]
[1745576544144,1.36194715,608.96,606.76,0.28641622]
[1745576544442,2.52826118,608.95,606.76,0.28641622]
[1745576544644,1.36194715,608.94,606.77,1.241]
[1745576544839,1.36194715,608.93,606.77,1.241]
[1745576545038,1.36146152,608.92,606.77,1.241]
[1745576545242,1.36146152,608.91,606.77,1.241]
[1745576545442,1.36146152,608.9,606.77,1.241]
[1745576545640,1.36146152,608.89,606.77,1.241]
[1745576545841,2.52771006,608.88,606.77,1.241]
[1745576546039,1.36139214,608.87,606.77,1.241]
[1745576546244,1.36139214,608.86,606.77,2.304]
[1745576546439,2.52770617,608.85,606.77,2.304]
[1745576546646,1.36139214,608.84,606.77,2.304]
[1745576546839,1.36139214,608.83,606.77,2.304]
[1745576547045,1.16631403,608.85,606.77,2.304]
[1745576547242,1.16631403,608.82,606.77,2.304]
[1745576547439,1.3619169,608.81,606.77,2.304]
[1745576547639,1.3619169,608.8,606.77,2.304]
[1745576547843,1.3619169,608.79,606.77,2.304]
[1745576548042,2.52823093,608.78,606.77,2.304]
[1745576548241,1.3619169,608.77,606.77,2.304]
[1745576548541,1.3619169,608.76,606.77,2.304]
[1745576548844,1.3619169,608.75,606.77,2.304]
[1745576549044,2.52823093,608.74,606.77,2.304]
[1745576549242,1.3619169,608.73,606.77,2.304]
[1745576549446,1.3619169,608.72,606.77,2.304]
[1745576549643,1.3619169,608.71,606.77,2.304]
[1745576549847,2.52823093,608.7,606.77,2.304]
[1745576550044,1.3619169,608.69,606.77,2.304]
[1745576550245,1.3619169,608.68,606.77,2.304]
[1745576550445,2.52823093,608.67,606.77,2.304]
[1745576550745,1.3619169,608.66,606.77,2.304]
[1745576550949,1.3619169,608.65,606.77,2.304]
[1745576551146,1.3619169,608.64,606.77,2.304]
[1745576551446,1.3619169,608.63,606.77,2.304]
[1745576551647,1.3619169,608.62,606.77,2.304]
[1745576551949,2.52823093,608.61,606.77,2.304]
[1745576552149,1.3619169,608.6,606.77,2.304]
[1745576552452,2.53021799,608.59,606.77,2.304]
[1745576552653,1.36390396,608.58,606.77,2.304]
[1745576552851,1.36390396,608.57,606.77,2.304]
[1745576553152,2.53021799,608.56,606.77,2.304]
[1745576553348,1.36390396,608.55,606.77,2.304]
[1745576553549,1.36390396,608.54,606.78,0.30247876]
[1745576553754,1.36390396,608.53,606.78,0.30247876]
[1745576554050,2.53021799,608.52,606.78,0.30247876]
[1745576554253,1.36390396,608.51,606.78,0.30247876]
[1745576554450,1.36390396,608.5,606.78,1.50247876]
[1745576554652,1.36390396,608.49,606.79,0.30247576]
[1745576554854,2.53021799,608.48,606.79,0.30247576]
[1745576555050,2.53021799,608.47,606.79,0.30247576]
[1745576555254,1.36390396,608.46,606.79,0.30247576]
[1745576555554,1.36390396,608.45,606.79,0.30247576]
[1745576555751,1.36390396,608.44,606.78,1.2]
[1745576555949,1.36390396,608.43,606.78,1.2]
[1745576556148,2.53021799,608.42,606.78,1.2]
[1745576556351,1.36390396,608.41,606.78,1.2]
[1745576556552,1.36390396,608.4,606.78,1.2]
[1745576556753,1.36390396,608.39,606.78,1.984]
[1745576557055,1.36390396,608.38,606.78,1.984]
[1745576557249,1.36390396,608.37,606.78,1.984]
[1745576557454,2.53021799,608.36,606.78,1.984]
[1745576557654,1.36390396,608.35,606.78,1.984]
[1745576557850,1.36390396,608.34,606.78,1.984]
[1745576558157,1.36390396,608.33,606.78,1.984]
[1745576558353,2.53021799,608.32,606.78,1.984]
[1745576558554,1.36390396,608.31,606.78,1.984]
[1745576558750,2.53021799,608.3,606.78,1.984]
[1745576558953,1.36390396,608.29,606.78,1.984]
[1745576559151,1.36390396,608.28,606.78,1.984]
[1745576559454,2.53021799,608.27,606.78,1.984]
[1745576559654,1.36390396,608.26,606.78,1.984]
[1745576559954,2.53021799,608.25,606.78,1.984]
[1745576560152,1.36390396,608.24,606.78,1.984]
[1745576560351,1.36390396,608.23,606.78,1.984]
[1745576560550,1.36390396,608.22,606.78,1.984]
[1745576560753,1.36390396,608.21,606.78,1.984]
[1745576560955,1.36390396,608.2,606.78,1.984]
[1745576561155,1.36390396,608.19,606.78,1.984]
[1745576561357,1.36390396,608.18,606.78,1.984]
[1745576561557,1.36390396,608.17,606.78,1.984]
[1745576561758,2.53021799,608.16,606.78,1.984]
[1745576561956,1.36390396,608.15,606.78,1.984]
[1745576562152,1.36390396,608.14,606.78,1.984]
[1745576562354,1.36390396,608.13,606.78,1.984]
[1745576562555,1.36390396,608.12,606.78,1.984]
[1745576562753,2.53021799,608.11,606.78,1.984]
[1745576562962,1.36390396,608.1,606.78,1.984]
[1745576563158,2.53021799,608.09,606.78,1.984]
[1745576563358,1.36390396,608.08,606.78,1.984]
[1745576563658,2.53021799,608.07,606.78,1.984]
[1745576563855,1.36390396,608.06,606.78,1.984]
[1745576564060,2.53021799,608.05,606.78,1.984]
[1745576564358,1.36390396,608.04,606.78,1.984]
[1745576564555,1.36390396,608.03,606.78,1.984]
[1745576564760,1.36390396,608.02,606.78,1.984]
[1745576564954,2.53021799,608.01,606.78,1.984]
[1745576565154,1.36390396,608.0,606.78,1.984]
[1745576565458,1.36390396,607.99,606.78,1.984]
[1745576565759,2.53021799,607.98,606.78,1.984]
[1745576565959,1.36390396,607.97,606.78,1.984]
[1745576566155,2.53021799,607.96,606.78,1.984]
[1745576566355,1.36390396,607.95,606.78,1.984]
[1745576566557,1.36390396,607.94,606.78,1.984]
[1745576566755,1.36917579,607.93,606.78,1.984]
[1745576567060,1.36917579,607.92,606.78,1.984]
[1745576567360,1.36917579,607.91,606.78,1.984]
[1745576567559,1.36917579,607.9,606.78,1.984]
[1745576567759,1.36917579,607.89,606.78,1.984]
[1745576568061,2.53548982,607.88,606.78,1.984]
[1745576568262,1.36917579,607.87,606.78,1.984]
[1745576568561,1.36917579,607.86,606.78,1.984]
[1745576568762,1.36917579,607.85,606.78,2.737]
[1745576569064,2.53548982,607.84,606.78,2.737]
[1745576569261,1.36917579,607.83,606.78,2.737]
[1745576569462,1.36917579,607.82,606.78,2.737]
[1745576569661,1.36917579,607.81,606.78,2.737]
[1745576569861,1.36917579,607.8,606.78,2.737]
[1745576570160,1.36917579,607.79,606.78,2.737]
[1745576570368,1.36917579,607.78,606.78,2.737]
[1745576570564,1.36917579,607.77,606.78,2.737]
[1745576570765,2.53548982,607.76,606.78,2.737]
[1745576570966,1.36917579,607.75,606.78,2.737]
[1745576571167,1.16631403,607.76,606.78,2.737]
[1745576571168,1.36917579,607.74,606.78,2.737]
[1745576571466,1.36917579,607.73,606.78,2.737]
[1745576571668,2.53548982,607.72,606.78,2.737]
[1745576571868,1.36917579,607.71,606.78,2.737]
[1745576572070,2.53548982,607.7,606.78,2.737]
[1745576572365,2.53548982,607.69,606.78,2.737]
[1745576572569,1.36917579,607.68,606.78,2.737]
[1745576572768,1.36917579,607.67,606.78,2.737]
[1745576572967,2.53548982,607.66,606.78,2.737]
[1745576573168,1.36917579,607.65,606.78,2.737]
[1745576573368,1.36917579,607.64,606.78,2.737]
[1745576573572,1.36917579,607.63,606.78,2.737]
[1745576573768,1.36917579,607.62,606.78,2.737]
[1745576573965,2.53548982,607.61,606.78,2.737]
[1745576574165,1.36917579,607.6,606.78,2.737]
[1745576574371,2.53548982,607.59,606.78,2.737]
[1745576574566,1.36917579,607.58,606.78,2.737]
[1745576574768,1.36917579,607.57,606.78,2.737]
[1745576574966,2.53548982,607.56,606.78,2.737]
[1745576575165,1.36917579,607.55,606.78,2.737]
[1745576575471,2.12294861,609.13,606.78,2.737]
[1745576575472,2.53548982,607.54,606.78,2.737]
[1745576575767,1.36917579,607.53,606.78,2.737]
[1745576575970,1.36785496,607.52,606.78,2.737]
[1745576576170,2.53416899,607.51,606.78,2.737]
[1745576576372,1.36785496,607.5,606.78,2.737]
[1745576576571,1.36785496,607.49,606.78,2.737]
[1745576576866,2.53416899,607.48,606.78,2.737]
[1745576577070,1.36785496,607.47,606.78,2.737]
[1745576577269,1.16631403,607.48,606.78,2.737]
[1745576577270,1.36785496,607.46,606.78,2.737]
[1745576577470,2.53416899,607.45,606.78,2.737]
[1745576577670,1.36795993,607.44,606.78,2.737]
[1745576577870,1.36795993,607.43,606.78,2.737]
[1745576578170,1.16631403,607.45,606.78,2.737]
[1745576578171,1.36795993,607.42,606.78,2.737]
[1745576578371,2.53427396,607.41,606.78,2.737]
[1745576578567,1.36795993,607.4,606.78,2.737]
[1745576578872,2.53427396,607.39,606.78,1.953]
[1745576579072,1.36795993,607.38,606.78,1.953]
[1745576579274,2.53427396,607.37,606.78,1.953]
[1745576579574,1.36795993,607.36,606.78,1.953]
[1745576579777,1.36795993,607.35,606.78,1.953]
[1745576579971,2.53427396,607.34,606.78,1.953]
[1745576580171,1.36795993,607.33,606.78,1.953]
[1745576580369,2.53427396,607.32,606.78,1.953]
[1745576580574,1.36795993,607.31,606.78,1.953]
[1745576580871,2.53427396,607.3,606.78,1.953]
[1745576581075,1.36795993,607.29,606.78,1.953]
[1745576581377,1.36795993,607.28,606.78,1.953]
[1745576581575,2.53427396,607.27,606.78,1.953]
[1745576581771,1.36795993,607.26,606.78,1.2]
[1745576582073,1.36795993,607.25,606.78,1.2]
[1745576582376,1.36795993,607.24,606.78,1.2]
[1745576582576,2.53427396,607.23,606.78,1.2]
[1745576582872,2.53427396,607.22,606.78,1.2]
[1745576583076,2.53427396,607.21,606.78,1.2]
[1745576583277,1.36795993,607.2,606.78,1.2]
[1745576583475,1.36795993,607.19,606.78,1.2]
[1745576583675,2.53427396,607.18,606.78,1.2]
[1745576583872,1.36795993,607.17,606.78,1.2]
[1745576584174,2.53427396,607.16,606.78,1.2]
[1745576584376,1.36795993,607.15,606.78,1.2]
[1745576584578,2.53427396,607.14,606.78,1.2]
[1745576584778,1.36795993,607.13,606.78,1.2]
[1745576584978,1.36795993,607.12,606.78,1.2]
[1745576585274,1.36795993,607.11,606.78,1.2]
[1745576585483,1.36795993,607.1,606.78,1.2]
[1745576585678,1.36795993,607.09,606.78,1.2]
[1745576585973,1.16631403,607.08,606.78,1.2]
[1745576586977,1.16631403,607.07,606.78,1.2]
[1745576587674,1.16631403,607.06,606.78,1.2]
[1745576588177,1.16631403,607.05,606.78,1.2]
[1745576588380,1.16631403,607.04,606.78,1.2]
[1745576589077,1.16631403,607.03,606.78,1.2]
[1745576589581,1.16631403,607.02,606.78,1.2]
[1745576589981,1.16631403,607.01,606.78,1.2]
[1745576590885,1.23953065,609.6,606.78,1.2]
[1745576591182,1.36922157,609.59,606.78,1.2]
[1745576591482,2.54187439,609.58,606.78,1.2]
[1745576591684,1.36922157,609.57,606.78,1.2]
[1745576591884,1.36922157,609.56,606.78,1.2]
[1745576592084,1.36922157,609.55,606.78,1.2]
[1745576592387,1.17265282,609.56,606.78,1.2]
[1745576592388,1.36922157,609.54,606.79,0.30243928]
[1745576592578,1.36922157,609.53,606.79,0.30243928]
[1745576592784,1.36922157,609.52,606.77,1.52729133]
[1745576592983,1.36922157,609.51,606.77,1.52729133]
[1745576593283,1.36922157,609.5,606.77,1.52729133]
[1745576593484,1.36922157,609.49,606.77,1.52729133]
[1745576593684,1.36922157,609.48,606.77,1.52729133]
[1745576593884,1.36922157,609.47,606.77,1.52729133]
[1745576594185,1.36922157,609.46,606.77,1.52729133]
[1745576594385,1.36922157,609.45,606.77,1.52729133]
[1745576594586,2.54187439,609.44,606.77,1.52729133]
[1745576594887,1.36922157,609.43,606.77,1.52729133]
[1745576595184,1.36922157,609.42,606.77,1.52729133]
[1745576595487,1.23953065,609.34,606.77,1.241]
[1745576595681,2.54187439,609.33,606.77,1.241]
[1745576595880,1.17265282,609.32,606.77,1.241]
[1745576596081,1.36806644,609.31,606.77,2.356]
[1745576596385,1.36806644,609.3,606.77,2.356]
[1745576596582,2.54071926,609.29,606.77,2.356]
[1745576596781,1.36806644,609.28,606.77,2.356]
[1745576596982,1.36806644,609.27,606.77,2.356]
[1745576597182,2.54071926,609.26,606.77,2.356]
[1745576597383,2.54071926,609.25,606.77,2.356]
[1745576597585,1.36806644,609.24,606.77,2.356]
[1745576597784,1.36806644,609.23,606.77,2.356]
[1745576597987,1.36806644,609.22,606.77,2.356]
[1745576598187,1.36806644,609.21,606.77,2.356]
[1745576598388,1.23953065,608.97,606.77,2.356]
[1745576598583,1.36806644,608.96,606.77,2.356]
[1745576598789,1.36806644,608.95,606.77,2.356]
[1745576598990,1.36806644,608.94,606.77,2.356]
[1745576599285,1.36797315,608.93,606.77,2.356]
[1745576599588,2.54062597,608.92,606.77,2.356]
[1745576599788,1.36797315,608.91,606.77,2.356]
[1745576599990,1.36797315,608.9,606.77,2.356]
[1745576600291,2.54062597,608.89,606.77,2.356]
[1745576600486,2.54062597,608.88,606.77,2.356]
[1745576600787,1.36797315,608.87,606.77,3.363]
[1745576600991,1.36797315,608.86,606.77,3.363]
[1745576601192,1.36797315,608.85,606.77,3.363]
[1745576601390,2.54062597,608.84,606.77,3.363]
[1745576601590,1.36797315,608.83,606.77,3.363]
[1745576601892,1.36797315,608.82,606.77,3.363]
[1745576602192,2.54062597,608.81,606.77,3.363]
[1745576602392,1.36797315,608.8,606.77,3.363]
[1745576602591,1.36797315,608.79,606.77,3.363]
[1745576602791,1.36822091,608.78,606.77,4.205]
[1745576602984,1.36822091,608.77,606.77,4.205]
[1745576603187,1.36822091,608.76,606.77,4.205]
[1745576603389,1.36822091,608.75,606.77,4.205]
[1745576603590,1.36822091,608.74,606.77,4.205]
[1745576603793,2.54087373,608.73,606.77,4.205]